Cogmind - Beta 15 @@@ ROGUE MODE // 2025.10.10 @ 23:21:37 Player: P9H Result: Destroyed by as-01309 with Assembled Rifle Performance ------------- Evolutions (1) 500 Regions Visited (5) 1000 Robots Destroyed (64) 320 Value Destroyed (1320) 1320 Prototype IDs (2) 40 Alien Tech Used (0) 0 Bonus (0) 0 TOTAL SCORE: 3180 Bonus ------- None Cogmind --------- Core Integrity 0/400 Matter 245/300 Energy 78/100 System Corruption 1% Temperature Cool (3) Movement Core (1400) Ox27 Location -9/Exiles Parts ------- > --- POWER (1) -------- (None) > --- PROPULSION (2) --- (None) > --- UTILITY (3) ------ Huge Storage Unit Structural Scanner Signal Interpreter > --- WEAPON (3) ------- Shotgun > --- INVENTORY (25) --- Ion Engine Ion Engine Light Ion Engine Light Ion Engine Light Ion Engine Light Ion Engine Improved Ion Engine Light Nuclear Core Light Treads Light Treads Light Treads Wheel Improved Heat Sink Terrain Scanner Hardened Light Armor Plating Heavy EM Pulse Gun Improved Light Cannon Improved Light Cannon Improved Light Cannon Grenade Launcher Rocket Launcher Mini Grenade Launcher Peak State ------------ > --- POWER ------------ Ion Engine > --- PROPULSION ------- Light Treads Light Treads > --- UTILITY ---------- Huge Storage Unit Structural Scanner Hardened Light Armor Plating > --- WEAPON ----------- Light Assault Rifle Improved Assault Rifle Improved Light Cannon > --- INVENTORY -------- Ion Engine Ion Engine Ion Engine Light Ion Engine Light Ion Engine Improved Ion Engine Light Nuclear Core Light Treads Light Treads Wheel Wheel Improved Heat Sink Terrain Scanner Propulsion Shielding Heavy EM Pulse Gun Heavy EM Pulse Gun Advanced Beam Cannon Shotgun Shotgun Improved Light Cannon Improved Light Cannon Improved Light Cannon Grenade Launcher Mini Grenade Launcher Mining Claw [Rating: 17] Favorites ----------- Power Ion Engine Engine Ion Engine Propulsion Light Treads Treads Light Treads Wheel Wheel Utility Structural Scanner Device Structural Scanner Storage Huge Storage Unit Processor Signal Interpreter Protection Hardened Light Armor Plating Weapon Improved Light Cannon Energy Gun Medium Laser Energy Cannon Advanced Beam Cannon Ballistic Gun Light Assault Rifle Ballistic Cannon Improved Light Cannon Build | -11 -10 -10 -9 -9 -9 ------- Run | Yrd Mat Min Mat Min Exi Slots Evolved 2 | . . . 2 . . Power . | . . . . . . Propulsion . | . . . . . . Utility 1 | . . . 1 . . Weapon 1 | . . . 1 . . Parts Attached 34 | 5 12 2 10 2 3 Power 4 | 1 2 . 1 . . Engine 4 | 1 2 . 1 . . Core . | . . . . . . Reactor . | . . . . . . Propulsion 8 | 2 5 . . 1 . Treads 3 | 2 . . . 1 . Leg . | . . . . . . Wheel 5 | . 5 . . . . Hover . | . . . . . . Flight . | . . . . . . Utility 6 | 1 2 . 3 . . Device 1 | . 1 . . . . Storage 2 | 1 1 . . . . Processor 1 | . . . 1 . . Hackware . | . . . . . . Protection 2 | . . . 2 . . Artifact . | . . . . . . Weapon 16 | 1 3 2 6 1 3 Energy Gun 3 | 1 . . 1 . 1 Energy Cannon 1 | . . . 1 . . Ballistic Gun 10 | . 3 2 2 1 2 Ballistic Cannon 2 | . . . 2 . . Launcher . | . . . . . . Special Weapon . | . . . . . . Impact Weapon . | . . . . . . Slashing Weapon . | . . . . . . Piercing Weapon . | . . . . . . Special Melee Weapon . | . . . . . . Unidentified Prototypes 2 | . . . 2 . . Parts Lost 21 | . 7 . 6 1 7 Power 4 | . 2 . 1 . 1 Propulsion 8 | . 3 . 2 1 2 Utility . | . . . . . . Weapon 9 | . 2 . 3 . 4 Highest Loss Streak 7 | . 3 . 4 1 7 To Critical Strikes 1 | . . . . . 1 Average Backups 22 | 3 11 21 24 25 24 Power 6 | . 1 1 6 7 8 Propulsion 4 | 1 3 3 4 4 4 Utility 2 | . 1 2 2 3 3 Weapon 9 | 1 5 15 10 10 9 Tool/Special . | . . . . . . Unused Backups 25 | . . . 4 1 20 Power 9 | . . . . 1 8 Propulsion 6 | . . . 2 . 4 Utility 2 | . . . . . 2 Weapon 8 | . . . 2 . 6 Tool/Special . | . . . . . . Average Slot Usage (%) 98 | . 92 100 99 99 95 Engine 11 | . 12 14 10 11 10 Treads 18 | . 8 . 20 21 20 Wheel 4 | . 19 28 1 . . Device 11 | . 12 14 11 11 11 Storage 11 | . 14 14 11 11 11 Processor 4 | . . . 1 11 11 Protection 4 | . . . 9 . . Energy Gun 1 | . 8 . . . . Ballistic Gun 20 | . 15 28 19 22 21 Ballistic Cannon 9 | . . . 12 11 10 Peak Build Rating 17 | 5 10 12 17 16 16 Average Rating 14 | 3 7 11 15 15 15 On Entrance 9 | . 5 10 12 16 16 Naked Turns . | . . . . . . Heaviest Build 99 | 12 90 92 99 94 94 Greatest Support 40 | 40 40 20 40 40 40 Greatest Overweight (x) 9 | . 8 4 9 4 2 Average Overweight (x) 2 | . 2 4 2 2 2 Largest Inventory Capacity 25 | 8 25 25 25 25 25 Average Capacity 24 | 6 20 25 25 25 25 Most Carried 25 | 5 21 23 25 25 25 Average Carried 22 | 3 11 21 24 24 24 Final Capacity 25 | 8 25 25 25 25 25 Final Carried 25 | 5 20 23 25 25 22 Class Distribution -------------------- 43% | Tank 36% | Skirmisher 19% | Mutant Dominant Class ---------------- Mutant | -10/Materials Mutant | -10/Mines Tank | -9/Materials Skirmisher | -9/Mines Skirmisher | -9/Exiles Resources | -11 -10 -10 -9 -9 -9 ----------- Run | Yrd Mat Min Mat Min Exi Matter Collected 1493 | 235 226 72 767 193 . Remotely . | . . . . . . Salvage Created 1575 | . 335 95 992 138 15 Parts 133 | . 29 5 83 16 . Haulers Intercepted 2 | . . . 2 . . Recyclers Shooed 2 | . . . 2 . . Parts Field Recycled . | . . . . . . Retrieved Matter . | . . . . . . Parts Self-Destructed . | . . . . . . Prevented . | . . . . . . Kills | -11 -10 -10 -9 -9 -9 ------- Run | Yrd Mat Min Mat Min Exi Combat Hostiles Destroyed 54 | . 11 2 29 10 2 Guns 38 | . 11 2 16 8 1 Cannons 14 | . . . 11 2 1 AOE 2 | . . . 2 . . Classes Destroyed 10 | . 3 . 6 . 1 Worker 4 | . 3 . 1 . . Builder 1 | . . . 1 . . Hauler 2 | . . . 2 . . Recycler 2 | . . . 2 . . Operator 1 | . . . 1 . . Watcher 2 | . . . 2 . . Swarmer 27 | . 6 . 11 10 . Grunt 20 | . 5 2 13 . . Sentry 5 | . . . 5 . . Assembled 2 | . . . . . 2 Best Kill Streak 7 | . 7 2 6 4 2 Combat Bots Only 6 | . 5 2 6 4 2 Max Kills in Single Turn 2 | . 1 1 2 1 1 Gunslinging . | . . . . . . Exploded 1 | . . . 1 . . Melee . | . . . . . . Uniques/NPCs Destroyed . | . . . . . . Combat | -11 -10 -10 -9 -9 -9 -------- Run | Yrd Mat Min Mat Min Exi Hostile Shots Fired 355 | . 83 3 160 47 62 Missed 103 | . 15 2 54 16 16 Hits 252 | . 68 1 106 31 46 Melee 4 | . . . . . 4 Projectile 248 | . 68 1 106 31 42 Critical Strikes 9 | . . . 1 2 6 Damage Taken 2885 | . 666 13 1230 234 742 Core 563 | . 160 . 171 19 213 Absorbed by Shields . | . . . . . . Redirected to Shielding 46 | . . . 46 . . Core Remaining (%) 68 | 100 . 36 . . . Volleys Fired 145 | . 41 4 77 15 8 Largest 3 | . 2 2 3 3 3 Hottest 91 | . 70 46 89 76 91 Shots Fired 368 | . 79 8 219 45 17 Gun 263 | . 79 8 133 30 13 Cannon 105 | . . . 86 15 4 Launcher . | . . . . . . Special . | . . . . . . Kinetic 321 | . 49 8 203 45 16 Thermal 30 | . 30 . . . . Explosive . | . . . . . . Electromagnetic 17 | . . . 16 . 1 Robot Hit Streak 12 | . 6 7 12 7 4 Robot Miss Streak 17 | . 3 3 17 2 3 Penetration Max . | . . . . . . Secondary Targets 5 | . 2 . 3 . . Max Gunslinging Chain 1 | . 1 . 1 . . Shots Hit Robots 201 | . 44 6 115 25 11 Core Hits 94 | . 20 5 53 11 5 Critical Kills . | . . . . . . Critical Parts Destroyed 1 | . . . 1 . . Critical Strikes 6 | . 3 . 3 . . Burn 3 | . 3 . . . . Destroy 1 | . . . 1 . . Blast 2 | . . . 2 . . Melee Attacks . | . . . . . . Impact . | . . . . . . Slashing . | . . . . . . Piercing . | . . . . . . Sneak Attacks . | . . . . . . Combat Hostiles . | . . . . . . Follow-up Attacks . | . . . . . . Damage Inflicted 3377 | . 523 96 2213 363 182 Guns 2174 | . 523 96 1175 258 122 Cannons 971 | . . . 806 105 60 Explosions 230 | . . . 230 . . Melee . | . . . . . . Ramming 2 | . . . 2 . . Kinetic 2676 | . 237 96 1812 363 168 Thermal 420 | . 286 . 134 . . Explosive 96 | . . . 96 . . Electromagnetic 183 | . . . 169 . 14 Impact . | . . . . . . Slashing . | . . . . . . Piercing . | . . . . . . Highest Corruption 3 | . 3 3 1 1 1 Average Corruption 1 | . 2 3 1 1 1 Corruption Purged . | . . . . . . Corruption Blocked . | . . . . . . Effects 41 | . 6 8 12 12 3 Message Errors 3 | . 1 1 1 . . Matter Fused 10 | . 1 1 6 2 . Heat Flow Errors 12 | . 1 3 4 3 1 Energy Discharges 2 | . . 1 . 1 . Data Loss (minor) 7 | . 1 1 . 4 1 Data Loss (major) 4 | . . 1 1 2 . Misfires 2 | . 1 . . . 1 Alerts 1 | . 1 . . . . Overload Shots . | . . . . . . Overflow Damage 43 | . . . 39 4 . Projectiles 19 | . . . 15 4 . Explosions 24 | . . . 24 . . Melee . | . . . . . . Knockbacks 9 | . . . 4 3 2 Impact . | . . . . . . Kinetic 9 | . . . 4 3 2 Secondary . | . . . . . . Self-Inflicted Damage 107 | . . . 107 . . Shots 2 | . . . 2 . . Rammed . | . . . . . . Targets Rammed 1 | . . . 1 . . Kicked . | . . . . . . Crushed 1 | . . . 1 . . Highest Temperature 255 | . 125 236 241 255 179 Average Temperature 48 | . 26 93 53 45 39 Received Heat Transfer 562 | . 123 9 330 . 100 Siege Activations . | . . . . . . Martial Activations . | . . . . . . Shielding Activations . | . . . . . . Robots Disrupted . | . . . . . . Combat Hostiles . | . . . . . . Robots Corrupted . | . . . . . . Combat Hostiles . | . . . . . . Parts Fried . | . . . . . . Impact Corruptions . | . . . . . . Robots Melted . | . . . . . . Combat Hostiles . | . . . . . . Parts Melted 2 | . 2 . . . . Heat Transferred 1273 | . 1073 . 200 . . Parts Sabotaged . | . . . . . . Parts Stolen . | . . . . . . Parts Stripped . | . . . . . . Power Chain Reactions 2 | . . . 2 . . Alert | -11 -10 -10 -9 -9 -9 ------- Run | Yrd Mat Min Mat Min Exi Maximum Alert Level 1 | . . . 1 . . Low Security (%) 80 | 100 100 100 63 100 . Level 1 19 | . . . 36 . . Level 2 . | . . . . . . Level 3 . | . . . . . . Level 4 . | . . . . . . Level 5 . | . . . . . . High Security . | . . . . . . Max Security . | . . . . . . Peak Influence 262 | . 196 50 262 125 . Initial 66 | . . 44 . 66 . Average 111 | . 73 16 179 28 . Influence Increases 1529 | . 365 55 887 222 . Destroy 0b10 Robot/C 1040 | . 220 40 580 200 . Destroy 0b10 Robot/NC 60 | . 15 . 45 . . Destroy Leader 208 | . 40 10 138 20 . Successful Hack 12 | . . 5 7 . . Disable Machine 30 | . . . 30 . . Destroy Structure 14 | . . . 12 2 . Lose Combat Pursuer 165 | . 90 . 75 . . Influence Decreases 1529 | . 251 169 716 393 . Entered New Map 175 | . . 70 . 105 . Time Decay 1214 | . 181 99 656 278 . Lost Part 140 | . 70 . 60 10 . Squads Dispatched 3 | . 1 . 2 . . Investigation 2 | . . . 2 . . Extermination . | . . . . . . Reinforcement 1 | . 1 . . . . Assault . | . . . . . . Garrison . | . . . . . . Intercept . | . . . . . . Searches Triggered . | . . . . . . Construction Impeded . | . . . . . . Haulers Reinforced . | . . . . . . Active Scanning Responses . | . . . . . . Cargo Convoy Interrupts . | . . . . . . Stealth | -11 -10 -10 -9 -9 -9 --------- Run | Yrd Mat Min Mat Min Exi Distress Signals 5 | . 1 . 4 . . Communications Jammed . | . . . . . . Distress Signals . | . . . . . . Times Spotted 98 | . 24 2 54 11 7 Peak Tracking Total 9 | . 6 2 9 4 9 Tactical Retreats 6 | . 3 . 3 . . Traps | -11 -10 -10 -9 -9 -9 ------- Run | Yrd Mat Min Mat Min Exi Traps Triggered 3 | . 3 . . . . Indirectly . | . . . . . . Trap Hack Attempts . | . . . . . . Triggered . | . . . . . . Disarmed . | . . . . . . Reprogrammed . | . . . . . . Reused . | . . . . . . Traps Extracted . | . . . . . . Installed . | . . . . . . Triggered . | . . . . . . Machines | -11 -10 -10 -9 -9 -9 ---------- Run | Yrd Mat Min Mat Min Exi Machines Disabled 4 | . . . 2 . 2 Max in Single Turn 2 | . . . 2 . 1 Machines Repaired . | . . . . . . Machines Dismantled . | . . . . . . Machines Sabotaged . | . . . . . . Overloaded Fab Kills . | . . . . . . Hacking | -11 -10 -10 -9 -9 -9 --------- Run | Yrd Mat Min Mat Min Exi Machines Accessed 7 | . 1 1 5 . . Terminals 7 | . 1 1 5 . . Fabricators . | . . . . . . Repair Stations . | . . . . . . Recycling Units . | . . . . . . Scanalyzers . | . . . . . . Garrison Access . | . . . . . . Total Hacks 10 | . 1 1 8 . . Successful 3 | . 1 1 1 . . Failed 7 | . . . 7 . . Catastrophic 3 | . . . 3 . . Database Lockouts . | . . . . . . Manual 8 | . . . 8 . . Terminals 10 | . 1 1 8 . . Fabricators . | . . . . . . Repair Stations . | . . . . . . Recycling Units . | . . . . . . Scanalyzers . | . . . . . . Garrison Access . | . . . . . . Terminal Hacks 3 | . 1 1 1 . . Branch Access Points 1 | . . . 1 . . Emergency Access Points 1 | . 1 . . . . Zone Layout 1 | . . 1 . . . Fabricator Hacks . | . . . . . . Repair Station Hacks . | . . . . . . Recycling Unit Hacks . | . . . . . . Scanalyzer . | . . . . . . Garrison Access Hacks . | . . . . . . Unauthorized Hacks . | . . . . . . Terminals . | . . . . . . Fabricators . | . . . . . . Repair Stations . | . . . . . . Recycling Units . | . . . . . . Scanalyzers . | . . . . . . Garrison Access . | . . . . . . Data Cores Recovered 1 | . . . 1 . . Used 1 | . . . 1 . . Hacking Detections 5 | . 1 . 4 . . Full Trace Events 2 | . . . 2 . . Feedback Events 1 | . . . 1 . . Corruption 1 | . . . 1 . . Feedback Blocked . | . . . . . . Robot Schematics Acquired . | . . . . . . Robots Built . | . . . . . . Authchips . | . . . . . . Time . | . . . . . . Total Robot Build Rating . | . . . . . . Part Schematics Acquired . | . . . . . . Parts Built . | . . . . . . Authchips . | . . . . . . Time . | . . . . . . Total Part Build Rating . | . . . . . . Parts Repaired . | . . . . . . Time . | . . . . . . Parts Recycled . | . . . . . . Recycled Matter . | . . . . . . Retrieved Matter . | . . . . . . Retrieved Components . | . . . . . . Parts Scanalyzed . | . . . . . . Part Schematics Acquired . | . . . . . . Parts Damaged . | . . . . . . Bothacking | -11 -10 -10 -9 -9 -9 ------------ Run | Yrd Mat Min Mat Min Exi Used RIF Installer . | . . . . . . Robots Hacked . | . . . . . . Non-combat . | . . . . . . Combat . | . . . . . . Robot Hacks Applied . | . . . . . . Relay Couplers Released . | . . . . . . Fabnet Peak Effective % . | . . . . . . Robots Rewired . | . . . . . . Allies Hacked . | . . . . . . Hacks Repelled . | . . . . . . Allies | -11 -10 -10 -9 -9 -9 -------- Run | Yrd Mat Min Mat Min Exi Total Allies . | . . . . . . Largest Group . | . . . . . . Highest-Rated Group . | . . . . . . Highest-Rated Ally . | . . . . . . Total Orders . | . . . . . . Ally Attacks . | . . . . . . Total Damage . | . . . . . . Kills . | . . . . . . Allies Corrupted . | . . . . . . Allies Melted . | . . . . . . Intel | -11 -10 -10 -9 -9 -9 ------- Run | Yrd Mat Min Mat Min Exi Active Infowar (turns) 6201 | . 640 328 3200 1819 214 Structural 6201 | . 640 328 3200 1819 214 Robot Analysis Total . | . . . . . . Derelict Logs Recovered 3 | . . 2 . 1 . Drone Launches . | . . . . . . Drone Recoveries . | . . . . . . Exploration | -11 -10 -10 -9 -9 -9 ------------- Run | Yrd Mat Min Mat Min Exi Turns Passed 6360 | 69 730 328 3200 1819 214 Spaces Moved 2156 | 52 371 160 963 550 60 Core 25 | 25 . . . . . Treads 1610 | 27 123 . 850 550 60 Legs . | . . . . . . Wheels 521 | . 248 160 113 . . Hover . | . . . . . . Flight . | . . . . . . Fastest Speed 50 | 50 135 140 140 320 320 Average Speed 262 | 107 147 140 299 321 320 Slowest Speed 480 | 160 320 140 320 480 320 Overloaded Moves . | . . . . . . Propulsion Burnouts . | . . . . . . Robots Hopped . | . . . . . . Potential Cave-ins . | . . . . . . Cave-ins Triggered . | . . . . . . Exploration Rate (%) 47 | 3 58 40 58 99 24 Regions Visited 5 Branch Regions 3 Pre-discovered Areas . | . . . . . . Known Exits Taken 2 | . . . 1 1 . Unknown Exits Taken 3 | 1 1 1 . . . Scrap Searched 2 | . . 1 . 1 . Spaces Dug . | . . . . . . Terrain Destroyed 12 | . . . 10 2 . Melee . | . . . . . . Projectile 6 | . . . 4 2 . AOE 6 | . . . 6 . . Terrain Rammed . | . . . . . . Walls Destroyed . | . . . . . . Machines Disabled . | . . . . . . Actions | -11 -10 -10 -9 -9 -9 --------- Run | Yrd Mat Min Mat Min Exi Total 2571 | 65 480 255 1125 575 71 Wait 161 | . 28 87 43 3 . Move 2151 | 51 370 159 962 549 60 Hop . | . . . . . . Pick Up 60 | 9 25 3 20 3 . Fast Attach 1 | 1 . . . . . Attach 27 | 4 10 . 9 1 3 Detach 1 | . 1 . . . . Swap 9 | . 3 2 3 1 . Drop 15 | . 2 . 10 3 . Fire 145 | . 41 4 77 15 8 Melee . | . . . . . . Ram . | . . . . . . Kick . | . . . . . . Crush 1 | . . . 1 . . Escape Stasis . | . . . . . . Rewire . | . . . . . . Trap . | . . . . . . Miscellaneous . | . . . . . . Route ------- -11/Scrapyard -10/Materials (discovered 2 exits: *Mat / *Min) -10/Mines -9/Materials (discovered 2 exits: *Mat / *Min) -9/Mines (discovered 4 exits: *Mat x2 / *Exi / *Zio) -9/Exiles History --------- Turn | Location | Event 4 | -11/Scrapyard | Discovered new exit (range 15) 70 | -11/Scrapyard | Entered Materials 315 | -10/Materials | Build established: Mutant 509 | -10/Materials | Lost 3 parts (1p2n) 533 | -10/Materials | Core integrity fell below 50% 559 | -10/Materials | Lost 3 parts (1p2w) 684 | -10/Materials | Discovered new exit (range 7) 778 | -10/Materials | Discovered new exit (range 13) 800 | -10/Materials | Entered Mines 862 | -10/Mines | Met a Derelict bent on vengeance 974 | -10/Mines | Discovered new exit (range 7) 981 | -10/Mines | Learned 2 Materials zone layouts 983 | -10/Mines | Learned Materials interactive machine intel 1128 | -10/Mines | Entered Materials 1128 | -9/Materials | Evolved 2 slots: Utility x1, Weapon x1 1130 | -9/Materials | Loaded intel: 17 interactive machine locations 1389 | -9/Materials | Lost 4 parts (2n2w) 1646 | -9/Materials | Build established: Tank 2550 | -9/Materials | Discovered new exit (range 16) 3359 | -9/Materials | Discovered new exit (range 15) 4270 | -9/Materials | Identified exit to Mines 4297 | -9/Materials | Build established: Skirmisher 4328 | -9/Materials | Entered Mines 5190 | -9/Mines | A Derelict revealed a hidden shortcut to a safe place 5202 | -9/Mines | Identified exit to Zion 5414 | -9/Mines | Discovered new exit (range 7) 6035 | -9/Mines | Discovered new exit (range 14) 6077 | -9/Mines | Identified exit to Materials 6131 | -9/Mines | Deemed a non-threat by the Exiles lab entrance 6131 | -9/Mines | Discovered new exit (range 6) 6144 | -9/Mines | Identified exit to Exiles 6147 | -9/Mines | Entered Exiles 6227 | -9/Exiles | Met 8R-AWN 6279 | -9/Exiles | Met EX-HEX 6337 | -9/Exiles | Attacked by the Exiles 6338 | -9/Exiles | Core integrity fell below 50% 6359 | -9/Exiles | Core integrity fell below 20% 6361 | -9/Exiles | Destroyed by as-01309 with Assembled Rifle Last Messages --------------- 06347_ Penetrated by HV Slug. 06347_ Critical hit (Destroy). 06347_ Lgt. Assault Rifle destroyed. 06347_ Lgt. Treads destroyed. 06347_ Imp. Assault Rifle destroyed. 06347_ Lgt. Treads destroyed. 06347_ Imp. Light Cannon destroyed. 06349_ Penetrated by HV Slug. 06349_ Ion Engine destroyed. 06349_ Penetrated by HV Slug. 06352_ Shotgun severed. 06353_ Penetrated by HV Slug. 06353_ Hvy. EM Pulse Gun destroyed. 06353_ Penetrated by HV Slug. 06355_ as-20893 destroyed. 06355_ Machine disabled. 06356_ HV Slug penetrates Machine. 06356_ Machine disabled. 06356_ HV Slug penetrates Machine. 06356_ Penetrated by HV Slug. Map ----- +----------------------------------------------------+ | ?????????????????????????????????????????????????? | | ?????????????????????????????????????????????????? | | ?????????????????????????????????????????????????? | | ?????????????????????????????????????????????????? | | ?????????????????????????????????????????????????? | | ?????????????????????????????????????????????????? | | ?????????????????????????????????????????????????? | | ?????????????????????????????????????????????????? | | ?????????????????????????????????????????????????? | | ?????????????????????????????????????????????????? | | ?????????????????????????????????????????????????? | | ?????????????????????????????????????????????????? | | ?????????????????????????????????????????????????? | | ?????????????????????????????????????????????????? | | ?????????????? ?????????????????????????????????? | | ?????????????? ????????????????????????????????? | | ????????????? ##?????????????????????????????? | | ????????????? ###??#############?????????????? | | ????????????" ##################????????????? | | ???????????? #####"""""""""####???????????? | | ???????????? " " " """"###???????????? | | ??????????? "" " ##???????????? | | ??????????? " """##?????????### | | ?????????? "a"###???????#### | | ?????????? " "#####?????###" | | ?????????? @ ""####????###" | | ????????????"""" % """##??#####" | | ????????????###""" % "###?#### | | ????????????#######""" % ###### | | ??????????????###### " a ##### | | ?????????????????###"""" % ### | | ??????????????????##"" # | | ??????????????????#"""" ## | | ???????????????????? % ""## | | ???????????????????? #"""### | | ??????????????????? % ######## | | ??????????????????? a ########? | | ??????????????????? " a ####?????? | | ???????????????????" """a ""###??????? | | ???????????????????"" " " "#" "###???????? | | ??????????????????????""" """##"""""""####???????? | | ?????????????????????????"??#############????????? | | ?????????????????????????????##########??????????? | | ?????????????????????????????????????????????????? | | ?????????????????????????????????????????????????? | | ?????????????????????????????????????????????????? | | ?????????????????????????????????????????????????? | | ?????????????????????????????????????????????????? | | ?????????????????????????????????????????????????? | | ?????????????????????????????????????????????????? | +----------------------------------------------------+ Best States ------------- Heat Dissipation 28 Energy Generation 10 Energy Capacity 250 Matter Stores 300 Matter Capacity 300 Sight Range 16 Terrain Scan Density 10 Armor Coverage 150 Propulsion Shielding 33 Evasion (%) 50 Recoil Reduction 2 Item Schematics ----------------- None Robot Schematics ------------------ None Fabricated ------------ Nothing Repaired ---------- Nothing Alien Tech Used ----------------- None Achievements -------------- None Challenges ------------ None Game ------ Seed DispersionBraceProjector Manual? 0 Play Time 00:27:55 Cumulative 70.9 hours Start 2025.10.10 @ 22:42:54 End 2025.10.10 @ 23:21:37 Sessions 1 Manual Loads 0 Difficulty Rogue Special Mode None Game No. 132 Rogue 132 Adventurer 0 Explorer 0 Win Type - Total 0 Types 0/0/0/0/0/0/0/0/0/0 Lore% 14 Gallery% 38 Achievement% 31 Wizard Run 0 Options --------- Layout 1 ASCII 0 Keyboard 0 Movement Mouse Keybinds 0 Fullscreen 2 Font 32/SmallcapsGlow Map View 50x35 Zoom Use 0% Tactical HUD 1 Map Filters NONE Filters NONE Steam 1 RUN: a906a125-6624-452c-bb08-9f83b1e6f5e3